fUSD/lending_fUSD_20240715
["ID","MTS","AMOUNT","RATE_DAILY","PERIOD"]
[332228703,1721055035229,-155.0,0.00013889,2]
[332228704,1721055035238,-160.13713916,0.00013899,2]
[332228705,1721055035247,-714.51605873,0.00013899,2]
[332228706,1721055035257,-484.13297627,0.00013899,2]
[332228707,1721055035266,-874.85644319,0.00013899,2]
[332228708,1721055035275,-356.67725809,0.00013899,2]
[332228709,1721055035284,-714.51605871,0.00013899,2]
[332228710,1721055035294,-714.51605871,0.00013899,2]
[332228711,1721055035303,-714.51605871,0.000139,2]
[332228712,1721055035312,-714.51605871,0.000139,2]
[332228713,1721055035322,-714.51605871,0.000139,2]
[332228714,1721055035331,-1000.0,0.000139,2]
[332228715,1721055035340,-661.0041,0.000139,2]
[332228716,1721055035349,-6950.4756,0.000139,2]
[332228717,1721055035359,-714.51605871,0.000139,2]
[332228718,1721055035368,-262.93426629,0.000139,2]
[332228719,1721055035377,-1480.00614402,0.000139,2]
[332228720,1721055035386,-1978.62405476,0.000139,2]
[332228721,1721055035395,-159.77421102,0.000139,2]
[332228722,1721055035404,-150.0,0.0001393,2]
[332228723,1721055035415,-506.20502555,0.00013934,2]
[332228724,1721055035425,-500.0,0.00013934,2]
[332228725,1721055035434,-500.0,0.00013934,2]
[332228726,1721055035443,-500.0,0.00013934,2]
[332228727,1721055035452,-500.0,0.00013934,2]
[332228728,1721055035461,-500.0,0.00013934,2]
[332228729,1721055035470,-500.0,0.00013934,2]
[332228730,1721055035479,-500.0,0.00013934,2]
[332228731,1721055035489,-500.0,0.00013934,2]
[332228732,1721055035498,-500.0,0.00013934,2]
[332228733,1721055035507,-299.77772228,0.00013934,2]
[332228734,1721055035515,-500.0,0.00013934,2]
[332228735,1721055035526,-364.15181389,0.00013934,2]
[332228736,1721055035534,-500.0,0.00013934,2]
[332228737,1721055035543,-500.0,0.00013934,2]
[332228738,1721055035553,-500.0,0.00013934,2]
[332228739,1721055035562,-500.0,0.00013934,2]
[332228740,1721055035571,-500.0,0.00013934,2]
[332228741,1721055035580,-500.0,0.00013934,2]
[332228742,1721055035589,-500.0,0.00013934,2]
[332228743,1721055035598,-1086.07,0.00013934,2]
[332228744,1721055035607,-500.0,0.00013934,2]
[332228745,1721055035616,-500.0,0.00013934,2]
[332228746,1721055035625,-500.0,0.00013934,2]
[332228747,1721055035634,-500.0,0.00013934,2]
[332228748,1721055035643,-500.0,0.00013934,2]
[332228749,1721055035652,-500.0,0.00013934,2]
[332228750,1721055035661,-500.0,0.00013934,2]
[332228751,1721055035670,-500.0,0.00013934,2]
[332228752,1721055035679,-500.0,0.00013944,2]
[332228753,1721055035688,-500.0,0.00013944,2]
[332228754,1721055035698,-500.0,0.00013944,2]
[332228755,1721055035707,-500.0,0.00013944,2]
[332228756,1721055035715,-787.82,0.00013944,2]
[332228757,1721055035725,-500.0,0.00013944,2]
[332228758,1721055035734,-500.0,0.00013944,2]
[332228759,1721055035743,-500.0,0.00013944,2]
[332228760,1721055035752,-500.0,0.00013944,2]
[332228761,1721055035761,-500.0,0.00013944,2]
[332228762,1721055035770,-500.0,0.00013944,2]
[332228763,1721055035780,-500.0,0.00013944,2]
[332228764,1721055035789,-500.0,0.00013944,2]
[332228765,1721055035798,-500.0,0.00013944,2]
[332228766,1721055035807,-500.0,0.00013944,2]
[332228767,1721055035816,-500.0,0.00013944,2]
[332228768,1721055035825,-500.0,0.00013944,2]
[332228769,1721055035834,-500.0,0.00013944,2]
[332228770,1721055035843,-500.0,0.00013944,2]
[332228771,1721055035852,-500.0,0.00013944,2]
[332228772,1721055035861,-500.0,0.00013944,2]
[332228773,1721055035871,-500.0,0.00013944,2]
[332228774,1721055035879,-500.0,0.00013944,2]
[332228775,1721055035889,-500.0,0.00013944,2]
[332228776,1721055035898,-500.0,0.00013944,2]
[332228777,1721055035908,-500.0,0.00013944,2]
[332228778,1721055035920,-500.0,0.00013944,2]
[332228779,1721055035929,-518.08,0.00013944,2]
[332228780,1721055035939,-168.07577664,0.00013944,2]
[332228781,1721055035948,-3395.91,0.00013944,2]
[332228782,1721055035958,-170.204743,0.00013948,2]
[332228783,1721055035969,-1660.0,0.0001396,2]
[332228784,1721055035978,-1252.0,0.0001396,2]
[332228785,1721055035989,-361.0,0.0001396,2]
[332228786,1721055035997,-1830.0,0.0001396,2]
[332228787,1721055036006,-1253.0,0.0001396,2]
[332228788,1721055036016,-3278.0,0.0001396,2]
[332228789,1721055036025,-548.0,0.0001396,2]
[332228790,1721055036034,-1991.0,0.0001396,2]
[332228791,1721055036043,-5818.0,0.0001396,2]
[332228792,1721055036052,-1666.0,0.0001396,2]
[332228793,1721055036061,-38292.0,0.0001396,2]
[332228794,1721055036070,-150.197,0.0001396,2]
[332228795,1721055036079,-498.273,0.0001396,2]
[332228796,1721055036089,-5183.0,0.0001396,2]
[332228797,1721055036097,-156.085,0.0001396,2]
[332228798,1721055036106,-500.0,0.00013989,2]
[332228799,1721055036115,-500.0,0.00013989,2]
[332228800,1721055036124,-500.0,0.00013989,2]
[332228801,1721055036133,-500.0,0.00013989,2]
[332228802,1721055036142,-500.0,0.00013989,2]
[332228803,1721055036151,-500.0,0.00013989,2]
[332228804,1721055036160,-500.0,0.00013989,2]
[332228805,1721055036169,-500.0,0.00013989,2]
[332228806,1721055036178,-500.0,0.00013989,2]
[332228807,1721055036187,-500.0,0.00013989,2]
[332228808,1721055036196,-500.0,0.00013989,2]
[332228809,1721055036205,-500.0,0.00013989,2]
[332228810,1721055036214,-500.0,0.00013989,2]
[332228811,1721055036223,-500.0,0.00013989,2]
[332228812,1721055036232,-500.0,0.00013989,2]
[332228813,1721055036241,-500.0,0.00013989,2]
[332228814,1721055036250,-1086.07,0.00013989,2]
[332228815,1721055036259,-500.0,0.00013989,2]
[332228816,1721055036268,-500.0,0.00013989,2]
[332228817,1721055036277,-500.0,0.00013989,2]
[332228818,1721055036286,-500.0,0.00013989,2]
[332228819,1721055036295,-500.0,0.00013989,2]
[332228820,1721055036303,-500.0,0.00013989,2]
[332228821,1721055036312,-500.0,0.00013989,2]
[332228822,1721055036321,-500.0,0.00013989,2]
[332228823,1721055036330,-721.94663678,0.00013989,2]
[332228824,1721055036339,-187.36462802,0.00013989,2]
[332228825,1721055036348,-652.15802817,0.00013989,2]
[332228826,1721055036357,-500.0,0.0001399,2]
[332228827,1721055036366,-1600.0,0.0001399,2]
[332228828,1721055036375,-500.0,0.0001399,2]
[332228829,1721055036384,-1400.0,0.0001399,2]
[332228830,1721055036393,-500.0,0.0001399,2]
[332228831,1721055036402,-1000.0,0.00013994,2]
[332228832,1721055036411,-366.9145091,0.00013995,2]
[332228833,1721055036420,-11046.1555799,0.00013995,2]
[332228834,1721055036429,-921.1894037,0.00013995,2]
[332228835,1721055036438,-32843.4180512,0.00013995,2]
[332228836,1721055036447,-361.6262083,0.00013995,2]
[332228837,1721055036455,-153.72830725,0.00013998,2]
[332228838,1721055036465,-500.0,0.00013998,2]
[332228839,1721055036474,-500.0,0.00013998,2]
[332228840,1721055036483,-500.0,0.00013998,2]
[332228841,1721055036492,-500.0,0.00013998,2]
[332228842,1721055036501,-787.82,0.00013998,2]
[332228843,1721055036509,-500.0,0.00013998,2]
[332228844,1721055036518,-500.0,0.00013998,2]
[332228845,1721055036527,-500.0,0.00013998,2]
[332228846,1721055036536,-318.99358376,0.00013998,2]
[332228847,1721055036545,-199.89835169,0.00013998,2]
[332228848,1721055036554,-500.0,0.00013998,2]
[332228849,1721055036563,-500.0,0.00013998,2]
[332228850,1721055036573,-500.0,0.00013998,2]
[332228851,1721055036581,-500.0,0.00013998,2]
[332228852,1721055036591,-500.0,0.00013998,2]
[332228853,1721055036600,-500.0,0.00013998,2]
[332228854,1721055036608,-500.0,0.00013998,2]
[332228855,1721055036617,-500.0,0.00013998,2]
[332228856,1721055036626,-222.89076526,0.00013998,2]
[332228857,1721055036635,-500.0,0.00013998,2]
[332228858,1721055036644,-500.0,0.00013998,2]
[332228859,1721055036654,-500.0,0.00013998,2]
[332228860,1721055036663,-500.0,0.00013998,2]
[332228861,1721055036672,-500.0,0.00013998,2]
[332228862,1721055036681,-500.0,0.00013998,2]
[332228863,1721055036691,-518.08,0.00013998,2]
[332228864,1721055036700,-3395.91,0.00013998,2]
[332228865,1721055036709,-523.0,0.00013999,2]
[332228866,1721055036719,-173.36604893,0.00013999,2]
[332228867,1721055036728,-1082.53677558,0.00013999,2]
[332228868,1721055036737,-140807.88607898,0.00013999,2]
[332228869,1721055036857,-500.0,0.00013834,2]
[332228870,1721055036867,-288.3262455,0.00013999,2]
[332228871,1721055036879,-3299.21382241,0.00013999,2]
[332228877,1721055037909,-155.0,0.00013128,2]
[332228879,1721055037921,-500.0,0.00013889,2]
[332228881,1721055037930,-484.13297627,0.00013889,2]
[332228883,1721055037939,-500.0,0.00013944,2]
[332228885,1721055037949,-150.302,0.0001396,2]
[332228887,1721055037958,-500.0,0.00013998,2]
[332228889,1721055037967,-2646.88748773,0.00013999,2]
[332228891,1721055037979,-285.375,0.00013999,2]
[332228893,1721055038828,-150.271,0.0001396,2]
[332228894,1721055038838,-1472.719,0.00013999,2]
[332228895,1721055039025,-1214.80253227,0.00013999,2]
[332228896,1721055039096,-15779.6553,0.00013999,2]
[332228897,1721055039167,-520506.45153883,0.00013999,2]
[332228899,1721055039177,-2000.0,0.00013999,2]
[332228901,1721055039187,-2000.0,0.00013999,2]
[332228903,1721055039197,-2000.0,0.00013999,2]
[332228905,1721055039207,-2000.0,0.00013999,2]
[332228907,1721055039216,-2000.0,0.00013999,2]
[332228909,1721055039226,-2000.0,0.00013999,2]
[332228911,1721055039235,-2000.0,0.00013999,2]
[332228913,1721055039246,-2000.0,0.00013999,2]
[332228915,1721055039256,-2000.0,0.00013999,2]
[332228916,1721055039265,-2000.0,0.00013999,2]
[332228917,1721055039274,-2000.0,0.00013999,2]
[332228918,1721055039285,-2000.0,0.00013999,2]
[332228919,1721055039294,-2000.0,0.00013999,2]
[332228920,1721055039304,-2000.0,0.00013999,2]
[332228921,1721055039313,-2000.0,0.00013999,2]
[332228922,1721055039322,-1383.49,0.00013999,2]
[332228923,1721055039332,-155.0,0.00013999,2]
[332228924,1721055039342,-155.24764559,0.00013999,2]
[332228925,1721055039352,-616.92384194,0.00013999,2]
[332228926,1721055039361,-32731.0,0.00013999,2]
[332228927,1721055039371,-676.5387686,0.00014,2]
[332228928,1721055039381,-1493.59127533,0.00014,2]
[332228929,1721055039394,-120334.29941382,0.00014,2]
[332228931,1721055039405,-1185.34288774,0.00014,2]
[332228933,1721055039417,-858.74623956,0.00014,2]
[332228991,1721055039971,-464.64,0.00014,2]
[332228993,1721055039983,-382.60523184,0.00014,2]
[332229008,1721055040131,-2256.33146258,0.00014,2]
[332229010,1721055040143,-59841.20793247,0.00014,2]
[332229016,1721055040189,-176472.56146656,0.00014,2]
[332229311,1721055043091,-159.57732946,0.00011197,2]
[332229313,1721055043102,-155.66862618,0.00013989,2]
[332229315,1721055043111,-317.69984568,0.00014,2]
[332229317,1721055043123,-500.0,0.00014,2]
[332229319,1721055043134,-1267.53629767,0.00014,2]
[332229321,1721055043145,-2829.58704795,0.00014,2]
[332229323,1721055043156,-298.72,0.00014,2]
[332229326,1721055043166,-758.19771398,0.00014,2]
[332229328,1721055043181,-2394.92953247,0.00014,2]
[332229330,1721055043193,-5658.86,0.00014,2]
[332229333,1721055043204,-211455.05023349,0.00014,2]
[332229335,1721055043214,-67184.02144191,0.00014,2]
[332229337,1721055043227,-997920.62223515,0.00014,2]
[332229339,1721055043238,-682.16532071,0.00014,2]
[332229341,1721055043250,-782.22733,0.00014,2]
[332229343,1721055043261,-4135.607814,0.00014,2]
[332229346,1721055043271,-361871.6202388,0.00014,2]
[332229348,1721055043283,-1913.60066779,0.00014,2]
[332229350,1721055043294,-1662.404714,0.00014,2]
[332229352,1721055043308,-98891.50671122,0.00014,2]
[332229354,1721055043319,-84191.364136,0.00014,2]
[332229356,1721055043330,-498.09121075,0.00014,2]
[332229358,1721055043341,-275.452,0.00014,2]
[332229363,1721055043382,-457.46219434,0.00014,2]
[332229366,1721055043394,-495.87980047,0.00014,2]
[332229368,1721055043405,-571.48088153,0.00014,2]
[332229388,1721055043598,-5958.007393,0.00014,2]
[332229638,1721055046081,-231.90170231,0.00013899,2]
[332229640,1721055046090,-6086.45850099,0.00014,2]
[332229642,1721055046101,-843.125,0.00014,2]
[332229647,1721055046139,-536.814937,0.00014,2]
[332229655,1721055046210,-383231.4948527,0.00014,2]
[332229665,1721055046297,-1023425.72991327,0.00014,2]
[332230413,1721055387647,151.0,0.00019976,120]
[332230424,1721055739686,-165.11440717,0.00020027,30]
[332230425,1721055739714,-165.11440716,0.00020082,30]
[332230432,1721055896224,1361.91,0.00027,120]
[332230433,1721055902811,151.0,0.00019946,120]
[332230467,1721056225169,151.0,0.00019955,120]
[332230468,1721056234154,-928.8,0.00010411,2]
[332230469,1721056234165,-319.07295113,0.00010898,2]
[332230470,1721056234175,-1892.615,0.00010998,2]
[332230471,1721056234184,-300.0,0.00011096,2]
[332230472,1721056234193,-9136.76595655,0.00011097,2]
[332230473,1721056234203,-155.0,0.00011098,2]
[332230474,1721056234213,-6234.64847857,0.00011098,2]
[332230475,1721056234223,-533.66826194,0.00011098,2]
[332230476,1721056234233,-4467.02483465,0.00011098,2]
[332230477,1721056234243,-624.40925396,0.00011098,2]
[332230478,1721056234252,-304.84513288,0.00011098,2]
[332230479,1721056234262,-2740.42496403,0.00011098,2]
[332230480,1721056234272,-189.43173838,0.00011098,2]
[332230481,1721056234286,-38.53999495,0.00011098,2]
[332230482,1721056234298,-155.92400422,0.00011197,2]
[332230483,1721056234308,-24745.28176521,0.00011199,2]
[332230484,1721056234318,-35627.7231892,0.00011199,2]
[332230485,1721056234329,-15451.9318012,0.00011199,2]
[332230486,1721056234339,-11005.33966224,0.00011199,2]
[332230487,1721056234349,-10530.36397608,0.00011199,2]
[332230488,1721056234358,-254.48154078,0.00011199,2]
[332230489,1721056234370,-420.0,0.00012192,2]
[332230490,1721056234380,-155.0,0.00012273,2]
[332230491,1721056234390,-155.0,0.00012314,2]
[332230492,1721056234401,-23890.0,0.00012353,2]
[332230493,1721056234410,-345.22,0.00012488,2]
[332230494,1721056234420,-257.89,0.00012553,2]
[332230495,1721056234429,-425.98,0.00012576,2]
[332230496,1721056234439,-250.0,0.00012576,2]
[332230497,1721056234448,-250.0,0.000126,2]
[332230498,1721056234457,-150.0,0.000126,2]
[332230499,1721056234467,-150.0,0.00012658,2]
[332230500,1721056234476,-928.8,0.00012675,2]
[332230502,1721056234486,-150.0,0.00012717,2]
[332230504,1721056234495,-150.0,0.00012775,2]
[332230506,1721056234504,-150.0,0.00012833,2]
[332230508,1721056234514,-150.0,0.00012892,2]
[332230510,1721056234523,-150.0,0.0001295,2]
[332230512,1721056234532,-190.58,0.00012977,2]
[332230514,1721056234542,-1000.0,0.00013004,2]
[332230516,1721056234551,-150.0,0.00013008,2]
[332230518,1721056234561,-150.0,0.00013067,2]
[332230519,1721056234571,-150.0,0.00013125,2]
[332230521,1721056234580,-6100.0,0.00013128,3]
[332230523,1721056234589,-150.0,0.00013183,2]
[332230525,1721056234599,-150.0,0.00013242,2]
[332230527,1721056234608,-150.0,0.000133,2]
[332230529,1721056234617,-90389.0,0.00013352,2]
[332230531,1721056234627,-150.0,0.00013358,2]
[332230533,1721056234636,-587.0,0.00013396,2]
[332230535,1721056234646,-150.0,0.00013417,2]
[332230537,1721056234658,-1284.91449418,0.00013472,7]
[332230539,1721056234667,-3114.29046017,0.00013472,2]
[332230541,1721056234677,-3077.57558188,0.00013472,2]
[332230543,1721056234687,-2500.0,0.00013474,2]
[332230545,1721056234697,-150.0,0.00013475,2]
[332230547,1721056234706,-150.0,0.00013533,2]
[332230548,1721056234715,-500.0,0.00013543,2]
[332230549,1721056234724,-150.0,0.00013592,2]
[332230550,1721056234733,-213.14294654,0.00013636,2]
[332230551,1721056234742,-150.0,0.0001365,2]
[332230552,1721056234751,-213.14294652,0.00013674,2]
[332230553,1721056234760,-1913.3015,0.00013679,2]
[332230554,1721056234769,-599.55,0.0001368,2]
[332230555,1721056234779,-500.0,0.00013698,2]
[332230556,1721056234788,-4166.66,0.00013698,2]
[332230557,1721056234797,-500.0,0.00013698,2]
[332230558,1721056234807,-500.0,0.00013698,2]
[332230559,1721056234816,-585.43,0.00013698,2]
[332230560,1721056234825,-500.0,0.00013698,2]
[332230561,1721056234835,-500.0,0.00013698,2]
[332230562,1721056234844,-500.0,0.00013698,2]
[332230563,1721056234853,-500.0,0.00013698,2]
[332230564,1721056234862,-500.0,0.00013698,2]
[332230565,1721056234871,-805.16,0.00013698,2]
[332230566,1721056234881,-500.0,0.00013698,2]
[332230567,1721056234890,-184.96,0.00013699,2]
[332230568,1721056234902,-250.0,0.00013699,2]
[332230569,1721056234911,-2277.67,0.00013699,2]
[332230570,1721056234921,-150.0,0.00013708,2]
[332230571,1721056234930,-213.14294652,0.00013711,2]
[332230572,1721056234940,-500.0,0.00013721,2]
[332230573,1721056234950,-2688.43,0.00013721,2]
[332230574,1721056234959,-12058.38227396,0.00013736,2]
[332230575,1721056234969,-1136.70475368,0.00013736,2]
[332230576,1721056234978,-816.02832938,0.00013736,2]
[332230577,1721056234988,-500.0,0.00013753,2]
[332230578,1721056234997,-4166.66,0.00013753,2]
[332230579,1721056235007,-500.0,0.00013753,2]
[332230580,1721056235016,-585.43,0.00013753,2]
[332230581,1721056235025,-500.0,0.00013753,2]
[332230582,1721056235034,-805.16,0.00013753,2]
[332230583,1721056235044,-500.0,0.00013753,2]
[332230584,1721056235053,-155.0,0.00013759,2]
[332230585,1721056235063,-1905.64778217,0.00013759,2]
[332230586,1721056235073,-150.0,0.00013767,2]
[332230587,1721056235082,-2688.43,0.00013775,2]
[332230588,1721056235092,-500.0,0.00013779,2]
[332230589,1721056235102,-500.0,0.00013779,2]
[332230590,1721056235115,-500.0,0.00013779,2]
[332230591,1721056235125,-500.0,0.00013779,2]
[332230592,1721056235135,-500.0,0.00013779,2]
[332230593,1721056235145,-500.0,0.00013779,2]
[332230594,1721056235156,-500.0,0.00013779,2]
[332230595,1721056235166,-500.0,0.00013779,2]
[332230596,1721056235175,-500.0,0.00013779,2]
[332230597,1721056235185,-500.0,0.00013779,2]
[332230598,1721056235195,-500.0,0.00013779,2]
[332230599,1721056235203,-500.0,0.00013779,2]
[332230600,1721056235213,-500.0,0.00013779,2]
[332230601,1721056235223,-500.0,0.00013779,2]
[332230602,1721056235232,-500.0,0.00013779,2]
[332230603,1721056235242,-500.0,0.00013779,2]
[332230604,1721056235252,-1519.22,0.00013779,2]
[332230605,1721056235262,-500.0,0.00013779,2]
[332230606,1721056235271,-500.0,0.00013779,2]
[332230607,1721056235281,-500.0,0.00013779,2]
[332230608,1721056235293,-500.0,0.00013779,2]
[332230609,1721056235302,-500.0,0.00013779,2]
[332230610,1721056235312,-3762.123,0.00013789,2]
[332230611,1721056235323,-157.44730638,0.0001379,2]
[332230612,1721056235334,-320.70974301,0.0001379,2]
[332230613,1721056235344,-159.77421102,0.00013799,2]
[332230614,1721056235353,-159.77421102,0.00013799,2]
[332230615,1721056235363,-159.77421102,0.00013799,2]
[332230616,1721056235373,-159.77421102,0.00013799,2]
[332230617,1721056235383,-7280.18080595,0.000138,3]
[332230618,1721056235392,-500.0,0.00013808,2]
[332230619,1721056235403,-4166.66,0.00013808,2]
[332230620,1721056235414,-500.0,0.00013808,2]
[332230621,1721056235424,-585.43,0.00013808,2]
[332230622,1721056235433,-500.0,0.00013808,2]
[332230623,1721056235443,-805.16,0.00013808,2]
[332230624,1721056235452,-156.04340067,0.00013808,2]
[332230625,1721056235461,-7280.18080595,0.00013824,3]
[332230626,1721056235471,-150.0,0.00013825,2]
[332230627,1721056235480,-2688.43,0.0001383,2]
[332230628,1721056235490,-500.0,0.00013834,2]
[332230629,1721056235499,-500.0,0.00013834,2]
[332230630,1721056235509,-500.0,0.00013834,2]
[332230631,1721056235518,-500.0,0.00013834,2]
[332230632,1721056235527,-500.0,0.00013834,2]
[332230633,1721056235537,-500.0,0.00013834,2]
[332230634,1721056235546,-500.0,0.00013834,2]
[332230635,1721056235556,-500.0,0.00013834,2]
[332230636,1721056235565,-500.0,0.00013834,2]
[332230637,1721056235574,-500.0,0.00013834,2]
[332230638,1721056235584,-500.0,0.00013834,2]
[332230639,1721056235594,-500.0,0.00013834,2]
[332230640,1721056235603,-500.0,0.00013834,2]
[332230641,1721056235612,-500.0,0.00013834,2]
[332230642,1721056235621,-500.0,0.00013834,2]
[332230643,1721056235631,-500.0,0.00013834,2]
[332230644,1721056235640,-500.0,0.00013834,2]
[332230645,1721056235649,-407.68487628,0.00013834,2]
[332230646,1721056235658,-500.0,0.00013834,2]
[332230647,1721056235668,-545.37877852,0.00013849,2]
[332230648,1721056235677,-718.74309008,0.00013849,2]
[332230649,1721056235687,-7280.18080595,0.00013853,3]
[332230650,1721056235697,-11695.97548691,0.0001386,2]
[332230651,1721056235706,-500.0,0.00013863,2]
[332230652,1721056235716,-4166.66,0.00013863,2]
[332230653,1721056235725,-500.0,0.00013863,2]
[332230654,1721056235734,-585.43,0.00013863,2]
[332230655,1721056235744,-500.0,0.00013863,2]
[332230656,1721056235753,-805.16,0.00013863,2]
[332230657,1721056235763,-190.85369923,0.00013878,2]
[332230658,1721056235772,-7280.18080595,0.00013879,3]
[332230659,1721056235782,-150.0,0.00013883,2]
[332230660,1721056235791,-2688.43,0.00013885,2]
[332230661,1721056235801,-258.71339457,0.00013887,2]
[332230662,1721056235811,-500.0,0.00013888,2]
[332230663,1721056235820,-200.0,0.00013888,2]
[332230664,1721056235830,-7280.18080595,0.00013889,3]
[332230665,1721056235840,-500.0,0.00013889,2]
[332230666,1721056235850,-500.0,0.00013889,2]
[332230667,1721056235860,-500.0,0.00013889,2]
[332230668,1721056235869,-500.0,0.00013889,2]
[332230669,1721056235880,-500.0,0.00013889,2]
[332230670,1721056235890,-500.0,0.00013889,2]
[332230671,1721056235899,-500.0,0.00013889,2]
[332230672,1721056235911,-500.0,0.00013889,2]
[332230673,1721056235920,-500.0,0.00013889,2]
[332230674,1721056235930,-500.0,0.00013889,2]
[332230675,1721056235940,-500.0,0.00013889,2]
[332230676,1721056235950,-500.0,0.00013889,2]
[332230677,1721056235959,-500.0,0.00013889,2]
[332230678,1721056235969,-500.0,0.00013889,2]
[332230679,1721056235978,-500.0,0.00013889,2]
[332230680,1721056235989,-500.0,0.00013889,2]
[332230681,1721056235998,-500.0,0.00013889,2]
[332230682,1721056236007,-650.73155859,0.00013889,2]
[332230683,1721056236017,-50961.2656417,0.0001389,3]
[332230684,1721056236027,-14560.3616119,0.0001389,3]
[332230685,1721056236035,-170.76527529,0.00013895,2]
[332230686,1721056236045,-500.0,0.00013899,2]
[332230687,1721056236054,-500.0,0.00013899,2]
[332230688,1721056236064,-500.0,0.00013899,2]
[332230689,1721056236073,-500.0,0.00013899,2]
[332230690,1721056236083,-2007.22182309,0.00013899,2]
[332230691,1721056236092,-500.0,0.00013899,2]
[332230692,1721056236101,-500.0,0.00013899,2]
[332230693,1721056236112,-500.0,0.00013899,2]
[332230694,1721056236122,-500.0,0.00013899,2]
[332230695,1721056236132,-500.0,0.00013899,2]
[332230696,1721056236142,-500.0,0.00013899,2]
[332230697,1721056236153,-467.29292361,0.00013899,2]
[332230698,1721056236163,-500.0,0.00013899,2]
[332230699,1721056236173,-654.84,0.00013899,2]
[332230700,1721056236183,-500.0,0.00013899,2]
[332230701,1721056236192,-500.0,0.00013899,2]
[332230702,1721056236202,-500.0,0.00013899,2]
[332230703,1721056236212,-500.0,0.00013899,2]
[332230704,1721056236222,-500.0,0.00013899,2]
[332230705,1721056236232,-500.0,0.00013899,2]
[332230706,1721056236242,-500.0,0.00013899,2]
[332230707,1721056236251,-500.0,0.00013899,2]
[332230708,1721056236261,-539.16186053,0.00013899,2]
[332230709,1721056236271,-180.03265084,0.00013899,2]
[332230710,1721056236281,-533.45396272,0.00013899,2]
[332230711,1721056236294,-500.0,0.00013899,2]
[332230712,1721056236303,-500.0,0.00013899,2]
[332230713,1721056236313,-500.0,0.00013899,2]
[332230714,1721056236322,-500.0,0.00013899,2]
[332230715,1721056236333,-500.0,0.00013899,2]
[332230716,1721056236342,-500.0,0.00013899,2]
[332230717,1721056236352,-525.35143015,0.00013899,2]
[332230718,1721056236362,-500.0,0.00013899,2]
[332230719,1721056236375,-500.0,0.00013899,2]
[332230720,1721056236567,-500.0,0.00013899,2]
[332230721,1721056236578,-500.0,0.00013899,2]
[332230722,1721056236588,-500.0,0.00013899,2]
[332230723,1721056236598,-858.22648215,0.00013899,2]
[332230724,1721056236608,-500.0,0.00013899,2]
[332230725,1721056236618,-500.0,0.00013899,2]
[332230726,1721056236627,-500.0,0.00013899,2]
[332230727,1721056236637,-160.3894,0.000139,2]
[332230728,1721056236646,-101774.0509,0.000139,2]
[332230729,1721056236658,-1000.0,0.000139,2]
[332230730,1721056236667,-1000.0,0.000139,2]
[332230731,1721056236677,-5136.9101,0.000139,2]
[332230732,1721056236687,-159.77421102,0.000139,2]
[332230733,1721056236696,-4166.66,0.00013917,2]
[332230734,1721056236706,-585.43,0.00013917,2]
[332230735,1721056236715,-500.0,0.00013917,2]
[332230736,1721056236725,-805.16,0.00013917,2]
[332230737,1721056236735,-7280.18080595,0.00013934,3]
[332230738,1721056236745,-2688.43,0.0001394,2]
[332230739,1721056236755,-150.0,0.00013942,2]